fUST/lending_fUST_20250220
["ID","MTS","AMOUNT","RATE_DAILY","PERIOD"]
[353681799,1739988645503,-151.0,0.000138,2]
[353681800,1739988645512,-152.0,0.00013815,2]
[353681802,1739988645522,-500.0,0.00013863,2]
[353681804,1739988645532,-500.0,0.00013863,2]
[353681807,1739988645543,-500.0,0.00013863,2]
[353681809,1739988645553,-500.0,0.00013863,2]
[353681811,1739988645563,-500.0,0.00013863,2]
[353681813,1739988645572,-500.0,0.00013863,2]
[353681815,1739988645581,-500.0,0.00013863,2]
[353681817,1739988645589,-500.0,0.00013863,2]
[353681818,1739988645597,-500.0,0.00013863,2]
[353681821,1739988645607,-1000.0,0.00013863,2]
[353681823,1739988645618,-500.0,0.00013863,2]
[353681825,1739988645628,-500.0,0.00013863,2]
[353681827,1739988645636,-501.64097503,0.00013863,2]
[353681829,1739988645645,-500.0,0.00013863,2]
[353681831,1739988645660,-500.0,0.00013863,2]
[353681832,1739988645667,-227.89,0.00013863,2]
[353681841,1739988645747,-503.50174926,0.00013863,2]
[353681842,1739988645757,-500.0,0.00013863,2]
[353681844,1739988645767,-500.0,0.00013863,2]
[353681846,1739988645778,-566.28,0.00013863,2]
[353681848,1739988645790,-500.0,0.00013863,2]
[353681850,1739988645801,-500.0,0.00013863,2]
[353681852,1739988645813,-500.0,0.00013863,2]
[353681854,1739988645822,-500.0,0.00013863,2]
[353681856,1739988645831,-500.0,0.00013863,2]
[353681858,1739988645842,-741.51,0.00013863,2]
[353681859,1739988645851,-506.63428064,0.00013863,2]
[353681861,1739988645860,-503.69824701,0.00013863,2]
[353681863,1739988645869,-500.0,0.00013863,2]
[353681865,1739988645879,-674.11,0.00013863,2]
[353681867,1739988645889,-500.0,0.00013863,2]
[353681869,1739988645899,-500.0,0.00013863,2]
[353681871,1739988645910,-500.0,0.00013863,2]
[353681873,1739988645920,-502.75966118,0.00013863,2]
[353681875,1739988645930,-500.0,0.00013863,2]
[353681877,1739988645940,-500.0,0.00013863,2]
[353681879,1739988645950,-500.0,0.00013863,2]
[353681881,1739988645960,-502.34451785,0.00013863,2]
[353681883,1739988645969,-709.3,0.00013863,2]
[353681884,1739988645978,-500.0,0.00013863,2]
[353681887,1739988645988,-500.0,0.00013863,2]
[353681890,1739988645998,-500.0,0.00013863,2]
[353681893,1739988646007,-634.2,0.00013863,2]
[353681896,1739988646016,-500.0,0.00013863,2]
[353681899,1739988646026,-500.0,0.00013863,2]
[353681902,1739988646035,-500.0,0.00013863,2]
[353681904,1739988646045,-500.0,0.00013863,2]
[353681907,1739988646055,-500.0,0.00013863,2]
[353681910,1739988646065,-500.0,0.00013863,2]
[353681913,1739988646075,-504.41,0.00013863,2]
[353681915,1739988646085,-500.0,0.00013863,2]
[353681917,1739988646094,-500.0,0.00013863,2]
[353681919,1739988646104,-511.02669937,0.00013863,2]
[353681921,1739988646113,-423.48934172,0.00013863,2]
[353681923,1739988646122,-589.83,0.00013863,2]
[353681925,1739988646134,-500.0,0.00013863,2]
[353681927,1739988646143,-23447.01,0.00013863,2]
[353681929,1739988646154,-500.0,0.00013863,2]
[353681931,1739988646164,-903.6,0.00013863,2]
[353681933,1739988646174,-324.7914492,0.00013863,2]
[353681935,1739988646184,-500.0,0.00013863,2]
[353681937,1739988646193,-500.0,0.00013863,2]
[353681939,1739988646203,-500.0,0.00013863,2]
[353681941,1739988646213,-560.56,0.00013863,2]
[353681943,1739988646223,-661.75,0.00013863,2]
[353681945,1739988646234,-500.0,0.00013863,2]
[353681947,1739988646244,-500.0,0.00013863,2]
[353681949,1739988646254,-952.78,0.00013863,2]
[353681951,1739988646264,-504.46148131,0.00013863,2]
[353681952,1739988646273,-502.93515204,0.00013863,2]
[353681954,1739988646283,-2315.57,0.00013863,2]
[353681956,1739988646293,-500.0,0.00013863,2]
[353681958,1739988646302,-500.0,0.00013863,2]
[353681960,1739988646311,-3025.53,0.00013863,2]
[353681962,1739988646322,-1175.6,0.00013863,2]
[353681964,1739988646331,-500.0,0.00013863,2]
[353681966,1739988646340,-979.27,0.00013863,2]
[353681968,1739988646350,-500.0,0.00013863,2]
[353681970,1739988646361,-592.13419471,0.00013863,2]
[353681972,1739988646370,-500.0,0.00013863,2]
[353681973,1739988646380,-8610.83,0.00013863,2]
[353681975,1739988646389,-500.0,0.00013863,2]
[353681977,1739988646398,-500.0,0.00013863,2]
[353681979,1739988646409,-587.77,0.00013863,2]
[353681982,1739988646423,-500.0,0.00013863,2]
[353681984,1739988646442,-500.0,0.00013863,2]
[353681987,1739988646457,-500.0,0.00013863,2]
[353681990,1739988646472,-981.23,0.00013863,2]
[353681992,1739988646488,-1054.51,0.00013863,2]
[353681995,1739988646505,-500.0,0.00013863,2]
[353681998,1739988646521,-500.0,0.00013863,2]
[353682000,1739988646538,-500.0,0.00013863,2]
[353682003,1739988646553,-500.0,0.00013863,2]
[353682005,1739988646568,-500.0,0.00013863,2]
[353682008,1739988646584,-500.0,0.00013863,2]
[353682010,1739988646598,-500.0,0.00013863,2]
[353682012,1739988646610,-455.09280904,0.00013863,2]
[353682014,1739988646624,-500.0,0.00013863,2]
[353682016,1739988646640,-500.0,0.00013863,2]
[353682019,1739988646659,-500.0,0.00013863,2]
[353682022,1739988646675,-707.81,0.00013863,2]
[353682024,1739988646689,-2015.79,0.00013863,2]
[353682026,1739988646701,-500.0,0.00013863,2]
[353682029,1739988646714,-500.0,0.00013863,2]
[353682031,1739988646731,-500.0,0.00013863,2]
[353682034,1739988646745,-1163.81,0.00013863,2]
[353682036,1739988646757,-500.0,0.00013863,2]
[353682039,1739988646772,-500.0,0.00013863,2]
[353682041,1739988646784,-500.0,0.00013863,2]
[353682043,1739988646796,-2382.21,0.00013863,2]
[353682045,1739988646809,-6044.15,0.00013863,2]
[353682047,1739988646822,-500.0,0.00013863,2]
[353682050,1739988646835,-1011.0,0.00013863,2]
[353682052,1739988646848,-456.66690651,0.00013863,2]
[353682054,1739988646861,-277.8004232,0.00013863,2]
[353682056,1739988646874,-500.0,0.00013863,2]
[353682058,1739988646887,-500.0,0.00013863,2]
[353682059,1739988646903,-1268.26,0.00013863,2]
[353682060,1739988646917,-500.0,0.00013863,2]
[353682061,1739988646930,-2033.33,0.00013863,2]
[353682062,1739988646944,-500.0,0.00013863,2]
[353682063,1739988646956,-500.0,0.00013863,2]
[353682064,1739988646969,-530.25710241,0.00013863,2]
[353682065,1739988646983,-1189.52,0.00013863,2]
[353682066,1739988646997,-500.0,0.00013863,2]
[353682067,1739988647010,-2055.1,0.00013863,2]
[353682068,1739988647023,-500.0,0.00013863,2]
[353682069,1739988647036,-500.0,0.00013863,2]
[353682070,1739988647050,-500.0,0.00013863,2]
[353682071,1739988647063,-1101.67,0.00013863,2]
[353682072,1739988647076,-1533.09,0.00013863,2]
[353682073,1739988647089,-500.0,0.00013863,2]
[353682074,1739988647101,-7584.55,0.00013863,2]
[353682075,1739988647114,-500.0,0.00013863,2]
[353682076,1739988647126,-354.61,0.00013863,2]
[353682077,1739988647139,-2979.97,0.00013863,2]
[353682078,1739988647154,-500.0,0.00013863,2]
[353682079,1739988647166,-500.0,0.00013863,2]
[353682080,1739988647179,-500.0,0.00013863,2]
[353682081,1739988647191,-633.93,0.00013863,2]
[353682082,1739988647205,-500.0,0.00013863,2]
[353682083,1739988647217,-703.24,0.00013863,2]
[353682084,1739988647230,-500.0,0.00013863,2]
[353682086,1739988647243,-500.0,0.00013863,2]
[353682088,1739988647256,-751.62,0.00013863,2]
[353682090,1739988647268,-500.0,0.00013863,2]
[353682093,1739988647280,-1101.90764085,0.00013893,2]
[353682095,1739988647293,-1101.90764085,0.00013893,2]
[353682097,1739988647305,-1101.90764085,0.00013893,2]
[353682100,1739988647317,-1101.90764085,0.00013893,2]
[353682102,1739988647327,-1101.90764085,0.00013893,2]
[353682116,1739988647456,-1101.90764085,0.00013893,2]
[353682118,1739988647466,-1101.90764085,0.00013893,2]
[353682120,1739988647478,-1101.90764085,0.00013893,2]
[353682122,1739988647487,-1101.90764085,0.00013893,2]
[353682124,1739988647497,-1101.90764085,0.00013893,2]
[353682126,1739988647505,-1101.90764085,0.00013893,2]
[353682127,1739988647514,-1101.90764085,0.00013893,2]
[353682128,1739988647523,-1101.90764085,0.00013893,2]
[353682130,1739988647533,-1101.90764085,0.00013893,2]
[353682132,1739988647542,-1101.90764085,0.00013893,2]
[353682134,1739988647551,-1101.90764085,0.00013893,2]
[353682136,1739988647561,-1101.90764085,0.00013893,2]
[353682138,1739988647571,-1101.90764085,0.00013893,2]
[353682140,1739988647581,-1101.90764085,0.00013893,2]
[353682142,1739988647590,-1101.9,0.00013893,2]
[353682144,1739988647600,-150.23714761,0.00013893,2]
[353682146,1739988647610,-150.23714761,0.00013893,2]
[353682148,1739988647619,-150.23714761,0.00013893,2]
[353682149,1739988647629,-150.23714761,0.00013893,2]
[353682151,1739988647638,-150.23714761,0.00013893,2]
[353682153,1739988647648,-150.23714761,0.00013893,2]
[353682155,1739988647660,-150.23714761,0.00013893,2]
[353682157,1739988647670,-150.23714761,0.00013893,2]
[353682159,1739988647679,-150.23714761,0.00013893,2]
[353682161,1739988647689,-150.23714761,0.00013893,2]
[353682163,1739988647699,-150.23714761,0.00013893,2]
[353682165,1739988647708,-150.23,0.00013893,2]
[353682167,1739988647719,-193.45013238,0.00013893,2]
[353682169,1739988647729,-193.45013238,0.00013893,2]
[353682171,1739988647738,-193.45013238,0.00013893,2]
[353682173,1739988647748,-193.45013238,0.00013893,2]
[353682174,1739988647757,-193.45013238,0.00013893,2]
[353682176,1739988647767,-193.45013238,0.00013893,2]
[353682178,1739988647777,-193.45013238,0.00013893,2]
[353682180,1739988647786,-193.45013238,0.00013893,2]
[353682182,1739988647796,-193.45013238,0.00013893,2]
[353682184,1739988647806,-193.45013238,0.00013893,2]
[353682186,1739988647815,-193.45013238,0.00013893,2]
[353682188,1739988647825,-193.45013238,0.00013893,2]
[353682190,1739988647834,-193.45013238,0.00013893,2]
[353682192,1739988647843,-193.45013238,0.00013893,2]
[353682194,1739988647852,-193.45013238,0.00013893,2]
[353682196,1739988647861,-193.45013238,0.00013893,2]
[353682198,1739988647870,-193.45013238,0.00013893,2]
[353682200,1739988647879,-193.45013238,0.00013893,2]
[353682202,1739988647888,-193.45013238,0.00013893,2]
[353682204,1739988647897,-193.45,0.00013893,2]
[353682206,1739988647908,-151.0,0.000139,2]
[353682208,1739988647917,-151.0,0.000139,2]
[353682210,1739988647927,-151.0,0.000139,2]
[353682212,1739988647936,-151.0,0.000139,2]
[353682214,1739988647945,-151.0,0.000139,2]
[353682216,1739988647954,-2520.63781582,0.000139,2]
[353682218,1739988647964,-500.0,0.00013945,2]
[353682220,1739988647973,-500.0,0.00013945,2]
[353682222,1739988647982,-500.0,0.00013945,2]
[353682223,1739988647992,-500.0,0.00013945,2]
[353682225,1739988648001,-500.0,0.00013945,2]
[353682227,1739988648011,-202.86456691,0.00013945,2]
[353682229,1739988648021,-500.0,0.00013945,2]
[353682231,1739988648031,-500.0,0.00013945,2]
[353682233,1739988648041,-500.0,0.00013945,2]
[353682235,1739988648051,-508.47692817,0.00013945,2]
[353682237,1739988648061,-500.0,0.00013945,2]
[353682239,1739988648072,-156.53,0.00013945,2]
[353682241,1739988648083,-645.14,0.00013945,2]
[353682243,1739988648093,-500.0,0.00013945,2]
[353682245,1739988648103,-741.51,0.00013945,2]
[353682247,1739988648113,-500.0,0.00013945,2]
[353682249,1739988648126,-674.11,0.00013945,2]
[353682250,1739988648136,-500.0,0.00013945,2]
[353682252,1739988648148,-500.0,0.00013945,2]
[353682254,1739988648160,-500.0,0.00013945,2]
[353682256,1739988648171,-500.0,0.00013945,2]
[353682258,1739988648184,-500.0,0.00013945,2]
[353682260,1739988648195,-709.3,0.00013945,2]
[353682262,1739988648205,-500.0,0.00013945,2]
[353682264,1739988648215,-500.0,0.00013945,2]
[353682266,1739988648224,-634.2,0.00013945,2]
[353682268,1739988648234,-500.0,0.00013945,2]
[353682270,1739988648244,-500.0,0.00013945,2]
[353682272,1739988648253,-502.64067905,0.00013945,2]
[353682274,1739988648263,-500.0,0.00013945,2]
[353682276,1739988648272,-504.41,0.00013945,2]
[353682278,1739988648282,-500.0,0.00013945,2]
[353682280,1739988648291,-589.83,0.00013945,2]
[353682282,1739988648300,-23447.01,0.00013945,2]
[353682284,1739988648310,-500.0,0.00013945,2]
[353682286,1739988648320,-903.6,0.00013945,2]
[353682288,1739988648330,-519.39744979,0.00013945,2]
[353682291,1739988648356,-500.0,0.00013945,2]
[353682293,1739988648367,-661.75,0.00013945,2]
[353682295,1739988648377,-560.56,0.00013945,2]
[353682297,1739988648387,-500.0,0.00013945,2]
[353682298,1739988648397,-952.78,0.00013945,2]
[353682300,1739988648407,-2315.57,0.00013945,2]
[353682302,1739988648418,-500.0,0.00013945,2]
[353682304,1739988648428,-500.0,0.00013945,2]
[353682306,1739988648437,-3025.53,0.00013945,2]
[353682308,1739988648447,-1175.6,0.00013945,2]
[353682310,1739988648458,-500.0,0.00013945,2]
[353682312,1739988648467,-500.0,0.00013945,2]
[353682314,1739988648476,-979.27,0.00013945,2]
[353682316,1739988648486,-500.0,0.00013945,2]
[353682318,1739988648495,-8610.83,0.00013945,2]
[353682320,1739988648505,-500.0,0.00013945,2]
[353682322,1739988648515,-585.82,0.00013945,2]
[353682324,1739988648525,-587.77,0.00013945,2]
[353682326,1739988648534,-500.0,0.00013945,2]
[353682327,1739988648544,-504.9081578,0.00013945,2]
[353682329,1739988648554,-500.0,0.00013945,2]
[353682331,1739988648564,-981.23,0.00013945,2]
[353682333,1739988648573,-1054.51,0.00013945,2]
[353682335,1739988648583,-500.0,0.00013945,2]
[353682337,1739988648592,-505.13121033,0.00013945,2]
[353682339,1739988648602,-221.14768895,0.00013945,2]
[353682341,1739988648611,-500.0,0.00013945,2]
[353682343,1739988648621,-500.0,0.00013945,2]
[353682345,1739988648631,-500.0,0.00013945,2]
[353682347,1739988648643,-500.0,0.00013945,2]
[353682349,1739988648659,-500.0,0.00013945,2]
[353682351,1739988648669,-500.0,0.00013945,2]
[353682353,1739988648679,-707.81,0.00013945,2]
[353682355,1739988648689,-2015.79,0.00013945,2]
[353682357,1739988648700,-500.0,0.00013945,2]
[353682359,1739988648710,-500.0,0.00013945,2]
[353682361,1739988648721,-500.0,0.00013945,2]
[353682363,1739988648731,-1163.81,0.00013945,2]
[353682365,1739988648741,-500.0,0.00013945,2]
[353682367,1739988648751,-500.0,0.00013945,2]
[353682369,1739988648760,-500.0,0.00013945,2]
[353682371,1739988648770,-2382.21,0.00013945,2]
[353682373,1739988648779,-6044.15,0.00013945,2]
[353682375,1739988648790,-1011.0,0.00013945,2]
[353682377,1739988648799,-500.0,0.00013945,2]
[353682379,1739988648809,-500.0,0.00013945,2]
[353682381,1739988648818,-1268.26,0.00013945,2]
[353682383,1739988648829,-500.0,0.00013945,2]
[353682385,1739988648838,-2033.33,0.00013945,2]
[353682387,1739988648847,-500.0,0.00013945,2]
[353682389,1739988648856,-500.0,0.00013945,2]
[353682391,1739988648866,-1189.52,0.00013945,2]
[353682393,1739988648875,-2055.1,0.00013945,2]
[353682395,1739988648885,-500.0,0.00013945,2]
[353682397,1739988648894,-500.0,0.00013945,2]
[353682398,1739988648904,-500.0,0.00013945,2]
[353682400,1739988648914,-479.4057298,0.00013945,2]
[353682402,1739988648924,-1101.67,0.00013945,2]
[353682404,1739988648934,-1533.09,0.00013945,2]
[353682406,1739988648943,-500.0,0.00013945,2]
[353682408,1739988648952,-7584.55,0.00013945,2]
[353682410,1739988648962,-500.0,0.00013945,2]
[353682412,1739988648972,-2979.97,0.00013945,2]
[353682414,1739988648981,-500.0,0.00013945,2]
[353682416,1739988648991,-500.0,0.00013945,2]
[353682418,1739988649001,-500.0,0.00013945,2]
[353682420,1739988649011,-633.93,0.00013945,2]
[353682422,1739988649021,-305.85138039,0.00013945,2]
[353682424,1739988649030,-703.24,0.00013945,2]
[353682426,1739988649040,-751.62,0.00013945,2]
[353682428,1739988649049,-537.39213682,0.00013945,2]
[353682430,1739988649059,-905.76027442,0.00013968,2]
[353682432,1739988649069,-500.0,0.00013973,2]
[353682433,1739988649079,-572.78652871,0.00013973,2]
[353682435,1739988649089,-112433.16575904,0.00013988,2]
[353682437,1739988649099,-112433.16575904,0.00013988,2]
[353682440,1739988649109,-112433.16575904,0.00013993,2]
[353682441,1739988649119,-151.0,0.00014,2]
[353682443,1739988649128,-151.0,0.00014,2]
[353682445,1739988649139,-151.0,0.00014,2]
[353682447,1739988649148,-500.0,0.00014027,2]
[353682449,1739988649158,-500.0,0.00014027,2]
[353682451,1739988649168,-363.26,0.00014027,2]
[353682453,1739988649178,-500.0,0.00014027,2]
[353682455,1739988649187,-500.0,0.00014027,2]
[353682457,1739988649197,-500.0,0.00014027,2]
[353682459,1739988649207,-500.0,0.00014027,2]
[353682461,1739988649216,-741.51,0.00014027,2]
[353682463,1739988649227,-634.39301092,0.00014027,2]
[353682465,1739988649236,-674.11,0.00014027,2]
[353682467,1739988649246,-500.0,0.00014027,2]
[353682469,1739988649255,-500.0,0.00014027,2]
[353682470,1739988649264,-500.0,0.00014027,2]
[353682472,1739988649274,-500.0,0.00014027,2]
[353682474,1739988649284,-709.3,0.00014027,2]
[353682476,1739988649295,-184.67105678,0.00014027,2]
[353682478,1739988649306,-500.0,0.00014027,2]
[353682480,1739988649317,-634.2,0.00014027,2]
[353682482,1739988649329,-500.0,0.00014027,2]
[353682484,1739988649339,-500.0,0.00014027,2]
[353682486,1739988649349,-500.0,0.00014027,2]
[353682488,1739988649360,-504.41,0.00014027,2]
[353682490,1739988649370,-589.83,0.00014027,2]
[353682492,1739988649380,-23447.01,0.00014027,2]
[353682494,1739988649390,-500.0,0.00014027,2]
[353682505,1739988649488,-903.6,0.00014027,2]
[353682507,1739988649498,-500.0,0.00014027,2]
[353682509,1739988649507,-661.75,0.00014027,2]
[353682511,1739988649517,-560.56,0.00014027,2]
[353682513,1739988649526,-952.78,0.00014027,2]
[353682514,1739988649535,-2315.57,0.00014027,2]
[353682516,1739988649545,-518.77801657,0.00014027,2]
[353682518,1739988649554,-3025.53,0.00014027,2]
[353682520,1739988649564,-1175.6,0.00014027,2]
[353682522,1739988649573,-500.0,0.00014027,2]
[353682524,1739988649583,-500.0,0.00014027,2]
[353682526,1739988649592,-979.27,0.00014027,2]
[353682528,1739988649603,-500.0,0.00014027,2]
[353682530,1739988649612,-8610.83,0.00014027,2]
[353682532,1739988649622,-500.0,0.00014027,2]
[353682534,1739988649632,-587.77,0.00014027,2]
[353682536,1739988649641,-595.42436319,0.00014027,2]
[353682538,1739988649651,-503.7232288,0.00014027,2]
[353682540,1739988649663,-981.23,0.00014027,2]
[353682542,1739988649673,-1054.51,0.00014027,2]
[353682544,1739988649683,-500.0,0.00014027,2]
[353682546,1739988649692,-500.0,0.00014027,2]
[353682548,1739988649702,-500.0,0.00014027,2]
[353682550,1739988649711,-500.0,0.00014027,2]
[353682552,1739988649721,-500.0,0.00014027,2]
[353682554,1739988649732,-500.0,0.00014027,2]
[353682555,1739988649741,-707.81,0.00014027,2]
[353682556,1739988649751,-2015.79,0.00014027,2]
[353682557,1739988649760,-212.35,0.00014027,2]
[353682558,1739988649769,-500.0,0.00014027,2]
[353682559,1739988649779,-500.0,0.00014027,2]
[353682560,1739988649788,-1163.81,0.00014027,2]
[353682561,1739988649797,-500.0,0.00014027,2]
[353682562,1739988649807,-500.0,0.00014027,2]
[353682563,1739988649817,-500.0,0.00014027,2]
[353682564,1739988649826,-2382.21,0.00014027,2]
[353682565,1739988649835,-6044.15,0.00014027,2]
[353682567,1739988649844,-1011.0,0.00014027,2]
[353682569,1739988649854,-500.0,0.00014027,2]
[353682571,1739988649864,-500.0,0.00014027,2]
[353682573,1739988649874,-1268.26,0.00014027,2]
[353682575,1739988649884,-500.0,0.00014027,2]
[353682577,1739988649893,-2033.33,0.00014027,2]
[353682579,1739988649905,-500.0,0.00014027,2]
[353682581,1739988649915,-500.0,0.00014027,2]
[353682583,1739988649925,-1189.52,0.00014027,2]
[353682585,1739988649934,-2055.1,0.00014027,2]
[353682587,1739988649943,-500.0,0.00014027,2]
[353682589,1739988649953,-500.0,0.00014027,2]
[353682591,1739988649962,-1101.67,0.00014027,2]
[353682593,1739988649971,-1533.09,0.00014027,2]
[353682595,1739988649982,-461.37,0.00014027,2]
[353682597,1739988649991,-7584.55,0.00014027,2]
[353682599,1739988650000,-500.0,0.00014027,2]
[353682601,1739988650010,-2979.97,0.00014027,2]
[353682603,1739988650019,-500.0,0.00014027,2]
[353682605,1739988650029,-500.0,0.00014027,2]
[353682607,1739988650038,-500.0,0.00014027,2]
[353682609,1739988650048,-633.93,0.00014027,2]
[353682611,1739988650058,-703.24,0.00014027,2]
[353682613,1739988650067,-751.62,0.00014027,2]
[353682615,1739988650077,-151.0,0.000141,2]
[353682617,1739988650087,-151.0,0.000141,2]
[353682619,1739988650097,-151.0,0.000141,2]
[353682621,1739988650107,-502.79605824,0.00014109,2]
[353682623,1739988650117,-500.0,0.00014109,2]
[353682625,1739988650126,-306.46,0.00014109,2]
[353682627,1739988650136,-500.0,0.00014109,2]
[353682629,1739988650146,-500.0,0.00014109,2]
[353682631,1739988650156,-741.51,0.00014109,2]
[353682633,1739988650166,-674.11,0.00014109,2]
[353682635,1739988650176,-500.0,0.00014109,2]
[353682637,1739988650187,-500.0,0.00014109,2]
[353682639,1739988650196,-500.0,0.00014109,2]
[353682641,1739988650205,-500.0,0.00014109,2]
[353682643,1739988650215,-709.3,0.00014109,2]
[353682645,1739988650224,-500.0,0.00014109,2]
[353682647,1739988650234,-634.2,0.00014109,2]
[353682649,1739988650244,-263.68230915,0.00014109,2]
[353682651,1739988650254,-500.0,0.00014109,2]
[353682653,1739988650263,-500.0,0.00014109,2]
[353682655,1739988650274,-504.41,0.00014109,2]
[353682657,1739988650283,-589.83,0.00014109,2]
[353682659,1739988650293,-23447.01,0.00014109,2]
[353682661,1739988650303,-500.0,0.00014109,2]
[353682663,1739988650313,-903.6,0.00014109,2]
[353682665,1739988650323,-500.0,0.00014109,2]
[353682667,1739988650333,-661.75,0.00014109,2]
[353682670,1739988650356,-560.56,0.00014109,2]
[353682672,1739988650368,-952.78,0.00014109,2]
[353682674,1739988650379,-2315.57,0.00014109,2]
[353682676,1739988650389,-3025.53,0.00014109,2]
[353682678,1739988650399,-1175.6,0.00014109,2]
[353682680,1739988650410,-500.0,0.00014109,2]
[353682682,1739988650420,-500.0,0.00014109,2]
[353682684,1739988650430,-979.27,0.00014109,2]
[353682686,1739988650440,-500.0,0.00014109,2]
[353682688,1739988650450,-8610.83,0.00014109,2]
[353682690,1739988650460,-500.0,0.00014109,2]
[353682692,1739988650470,-587.77,0.00014109,2]
[353682694,1739988650480,-981.23,0.00014109,2]
[353682696,1739988650490,-1054.51,0.00014109,2]
[353682698,1739988650501,-500.0,0.00014109,2]
[353682700,1739988650511,-500.0,0.00014109,2]
[353682702,1739988650521,-500.0,0.00014109,2]
[353682704,1739988650532,-500.0,0.00014109,2]
[353682706,1739988650542,-500.0,0.00014109,2]
[353682708,1739988650552,-500.0,0.00014109,2]
[353682710,1739988650564,-707.81,0.00014109,2]
[353682712,1739988650575,-2015.79,0.00014109,2]
[353682714,1739988650586,-500.0,0.00014109,2]
[353682716,1739988650595,-500.0,0.00014109,2]
[353682718,1739988650608,-1163.81,0.00014109,2]
[353682720,1739988650618,-500.0,0.00014109,2]
[353682722,1739988650628,-500.0,0.00014109,2]
[353682724,1739988650638,-500.0,0.00014109,2]
[353682726,1739988650649,-2382.21,0.00014109,2]
[353682728,1739988650664,-6044.15,0.00014109,2]
[353682730,1739988650674,-1011.0,0.00014109,2]
[353682732,1739988650684,-569.04986233,0.00014109,2]
[353682734,1739988650695,-500.0,0.00014109,2]
[353682736,1739988650704,-1268.26,0.00014109,2]
[353682738,1739988650714,-500.0,0.00014109,2]
[353682740,1739988650724,-2033.33,0.00014109,2]
[353682742,1739988650734,-500.0,0.00014109,2]
[353682744,1739988650746,-500.0,0.00014109,2]
[353682746,1739988650756,-1189.52,0.00014109,2]
[353682748,1739988650765,-2055.1,0.00014109,2]
[353682750,1739988650775,-500.0,0.00014109,2]
[353682752,1739988650786,-1101.67,0.00014109,2]
[353682754,1739988650796,-1533.09,0.00014109,2]
[353682756,1739988650806,-7584.55,0.00014109,2]
[353682758,1739988650815,-500.0,0.00014109,2]
[353682760,1739988650825,-2979.97,0.00014109,2]
[353682762,1739988650834,-500.0,0.00014109,2]
[353682764,1739988650844,-500.0,0.00014109,2]
[353682766,1739988650854,-633.93,0.00014109,2]
[353682768,1739988650863,-703.24,0.00014109,2]
[353682770,1739988650874,-751.62,0.00014109,2]
[353682772,1739988650884,-500.0,0.00014173,2]
[353682774,1739988650894,-500.0,0.00014173,2]
[353682776,1739988650905,-500.0,0.00014173,2]
[353682778,1739988650914,-420.0,0.00014174,2]
[353682780,1739988650923,-500.0,0.00014191,2]
[353682781,1739988650934,-500.0,0.00014191,2]
[353682783,1739988650944,-500.0,0.00014191,2]
[353682786,1739988650954,-741.51,0.00014191,2]
[353682787,1739988650964,-674.11,0.00014191,2]
[353682790,1739988650974,-500.0,0.00014191,2]
[353682792,1739988650985,-500.0,0.00014191,2]
[353682793,1739988650995,-500.0,0.00014191,2]
[353682795,1739988651005,-500.0,0.00014191,2]